{"text_format":"3","workbook":"xlsx","n_sheets":4,"sheets":["Composition_Calcul_principal_1","Calcul_auxiliaire_semi-finis_1","VA_INT_1","VA_EXT_1"],"not_rendered":{"defined_names":6,"comments":1},"read":"whole","date_system":"1900"}

{"sheet":"Composition_Calcul_principal_1","index":0,"n_rows":86,"n_cols":12,"rows_kept":86,"merged":[[0,1,0,3],[2,1,2,3],[7,9,7,10],[8,9,8,10],[9,9,9,10],[10,9,10,10],[11,9,11,10],[12,9,12,10],[13,9,13,10],[14,9,14,10],[15,9,15,10],[16,9,16,10],[17,9,17,10],[18,9,18,10],[19,9,19,10],[20,9,20,10],[21,9,21,10],[22,9,22,10],[23,9,23,10],[24,9,24,10],[25,9,25,10],[26,9,26,10],[27,9,27,10],[28,9,28,10],[29,9,29,10],[35,2,35,3],[36,2,36,3],[37,2,37,3],[38,2,38,3],[39,2,39,3],[40,2,40,3],[41,2,41,3],[42,2,42,3]]}
["entreprise:",{"$nulls":4},"Avec calcul auxiliaire produits semi-finis",{"$nulls":3},"oui",null,"joindre les justificatifs!"]
[]
["produit (dénomination spécifique):"]
[]
["Contrôle de la composition",{"$nulls":5},"frais","pour calcul",null,"fournisseurs/ certificats"]
["Quantité de contrôle (p.ex. 1 kg, 100 kg):",null,"kg*","autre unité:",null,null,"de la valeur ajoutée",null,null,"joindre les justificatifs"]
[]
["Ingrédients d'origine agricole","Ingré-dient régional kg* (incl. sucre suisse, spécialités CH (liste spécialités)","de provenance suisse kg*","ingrédient importé kg*","produit semi-fini pas pris en compte kg*","Total en % des ingrédients d'origine agricole","Prix d'achat par kg* CHF","Frais totaux CHF","dont attri-buables régio-nales CHF","fournisseur/ commentaire",null,"spécifications, certificats ou certificat d'origine pour produits semi-finis (AOP, AQ viande,…)"]
[{"$nulls":5},{"$f":"SUM(B9:E9)/SUM($B$31:$E$31)","v":{"$error":"#DIV/0!"}},null,{"$f":"SUM(B9:E9)*G9","v":0},{"$f":"B9*G9","v":0}]
[{"$nulls":5},{"$error":"#DIV/0!"},null,0,0]
[{"$nulls":5},{"$error":"#DIV/0!"},null,0,0]
[{"$nulls":5},{"$error":"#DIV/0!"},null,0,0]
[{"$nulls":5},{"$error":"#DIV/0!"},null,0,0]
[{"$nulls":5},{"$error":"#DIV/0!"},null,0,0]
[{"$nulls":5},{"$error":"#DIV/0!"},null,0,0]
[{"$nulls":5},{"$f":"SUM(B16:E16)/SUM($B$31:$E$31)","v":{"$error":"#DIV/0!"}},null,{"$f":"SUM(B16:E16)*G16","v":0},{"$f":"B16*G16","v":0}]
[{"$nulls":5},{"$error":"#DIV/0!"},null,{"$f":"SUM(B17:E17)*G17","v":0},{"$f":"B17*G17","v":0}]
[{"$nulls":5},{"$error":"#DIV/0!"},null,{"$f":"SUM(B18:E18)*G18","v":0},{"$f":"B18*G18","v":0}]
[{"$nulls":5},{"$error":"#DIV/0!"},null,{"$f":"SUM(B19:E19)*G19","v":0},{"$f":"B19*G19","v":0}]
[{"$nulls":5},{"$error":"#DIV/0!"},null,{"$f":"SUM(B20:E20)*G20","v":0},{"$f":"B20*G20","v":0}]
[{"$nulls":5},{"$error":"#DIV/0!"},null,0,0]
[{"$nulls":5},{"$error":"#DIV/0!"},null,0,0]
[{"$nulls":5},{"$error":"#DIV/0!"},null,0,0]
[{"$nulls":5},{"$error":"#DIV/0!"},null,0,0]
[{"$nulls":5},{"$error":"#DIV/0!"},null,0,0]
[{"$nulls":5},{"$error":"#DIV/0!"},null,0,0]
[{"$nulls":5},{"$error":"#DIV/0!"},null,0,0]
["de produit semi-fini 1: ",{"$f":"IF($J$1=\"oui\",('Calcul_auxiliaire_semi-finis_1'!D7),0)","v":0},{"$f":"IF($J$1=\"oui\",('Calcul_auxiliaire_semi-finis_1'!E7),0)","v":0},{"$f":"IF($J$1=\"oui\",('Calcul_auxiliaire_semi-finis_1'!F7),0)","v":0},null,{"$f":"SUM(B28:E28)/SUM($B$31:$E$31)","v":{"$error":"#DIV/0!"}},{"$f":"IF($J$1=\"oui\",'Calcul_auxiliaire_semi-finis_1'!K7,0)","v":0},{"$f":"SUM(B28:E28,B41)*G28","v":0},{"$f":"IF($J$1=\"oui\",('Calcul_auxiliaire_semi-finis_1'!K9*Composition_Calcul_principal_1!H28),0)","v":0}]
["de produit semi-fini 2: ",{"$f":"IF($J$1=\"oui\",'Calcul_auxiliaire_semi-finis_1'!D47,0)","v":0},{"$f":"IF($J$1=\"oui\",'Calcul_auxiliaire_semi-finis_1'!E47,0)","v":0},{"$f":"IF($J$1=\"oui\",'Calcul_auxiliaire_semi-finis_1'!F47,0)","v":0},null,{"$error":"#DIV/0!"},{"$f":"IF($J$1=\"oui\",'Calcul_auxiliaire_semi-finis_1'!K47,0)","v":0},{"$f":"SUM(B29:E29,B42)*G29","v":0},{"$f":"IF($J$1=\"oui\",('Calcul_auxiliaire_semi-finis_1'!K49*Composition_Calcul_principal_1!H29),0)","v":0}]
["de produit semi-fini 3:",{"$f":"IF($J$1=\"oui\",'Calcul_auxiliaire_semi-finis_1'!D87,0)","v":0},{"$f":"IF($J$1=\"oui\",'Calcul_auxiliaire_semi-finis_1'!E87,0)","v":0},{"$f":"IF($J$1=\"oui\",'Calcul_auxiliaire_semi-finis_1'!F87,0)","v":0},null,{"$error":"#DIV/0!"},{"$f":"IF($J$1=\"oui\",'Calcul_auxiliaire_semi-finis_1'!K87,0)","v":0},{"$f":"SUM(B30:E30,B43)*G30","v":0},{"$f":"IF($J$1=\"oui\",('Calcul_auxiliaire_semi-finis_1'!K89*Composition_Calcul_principal_1!H30),0)","v":0}]
["totaux des colonnes",{"$f":"SUM(B9:B30)","v":0},{"$f":"SUM(C9:C30)","v":0},{"$f":"SUM(D9:D30)","v":0},{"$f":"SUM(E9:E30)","v":0},{"$f":"SUM(F9:F30)","v":{"$error":"#DIV/0!"}},null,{"$f":"SUM(H9:H30)","v":0},{"$f":"SUM(I9:I30)","v":0}]
["total ingrédients agricoles",{"$nulls":5},{"$f":"SUM(B31:E31)","v":0}]
["total ingrédients agricoles d'origine régionale",{"$nulls":5},{"$f":"B31","v":0}]
["Part régionale des ingrédients agricoles",{"$nulls":5},{"$f":"B31/SUM(B31:E31)","v":{"$error":"#DIV/0!"}}," valeur de consigne ≥80%"]
[]
["indrédients d'origine non agricole","quantité kg*","fournisseur/ commentaire",null,"InfoXgen"]
[{"$nulls":10},"légende de couleurs"]
[]
[{"$nulls":11},"bloqué (cellule de résultat)"]
[]
[{"$f":"A28","v":"de produit semi-fini 1: "},{"$f":"IF($J$1=\"oui\",'Calcul_auxiliaire_semi-finis_1'!G7,0)","v":0},{"$nulls":9},"ne contient pas de formule"]
[{"$f":"A29","v":"de produit semi-fini 2: "},{"$f":"IF($J$1=\"oui\",'Calcul_auxiliaire_semi-finis_1'!G47,0)","v":0}]
[{"$f":"A30","v":"de produit semi-fini 3:"},{"$f":"IF($J$1=\"oui\",'Calcul_auxiliaire_semi-finis_1'!G87,0)","v":0},{"$nulls":9},"contient des formules"]
["Total ingrédients d'origine non agricoles. ",{"$nulls":4},{"$f":"SUM(B37:B43)","v":0},{"$nulls":5},"modifiable"]
[]
["total de tous les ingrédients / quantité de contrôle",{"$nulls":4},{"$f":"ROUND(SUM(B31:E31)+F44,2)","v":0},{"$f":"IF(F46=B6,\"total quantité de contrôle correct\",\"erreur dans le total\")","v":"total quantité de contrôle correct"},{"$nulls":4},"liste drop down/ à choisir"]
[]
["etiquette (déclaration incl. Ingrédients): coller ici ou joindre"]
{"$rows_empty":11}
["commentaires:"]
[]
[]
[]
["avec la signature, l'exactitude des données est confirmée: "]
[]
["lieu, date:",{"$nulls":5},"Nom, prénom, signature"]
[]
["laisser vide"]
["corrections/décisions:",{"$nulls":10},"Contrôle par:"]
[]
[]
[]
[]
[]
["Marche à suivre:"]
["1. Insérer nom de l'entreprise et du produit "]
["2. Choisir dans cellule I1 si la feuille \"calcul_auxiliare_semi-finis\" est utilisé ou pas "]
["3. Choisir la quantité de contrôle ( par ex. 100 kg) dans cellule B6, inserer unité dans cellule F6, si différente de kg"]
["4. Insérer les ingrédients d'origine agricole:  Nom, quantité selon provenance: ingrédient régional, ingrédient d'origine suisse, ingrédient importé et insérer les ingrédients non agricoles "]
["5. Insérer des produits semi-finis dans le cas ou le calcul auxiliare n'est pas utilisé: Nom, ingrédients agricoles: quantités selon provenance: ingrédient régional, ingrédient d'origine suisse, ingrédient importé. Ingrédients non agricoles: quantité "]
["6. S'il n'y a pas de repartition des produits semi-finis selon provenance: Insérer quantité dans colonne E: Produit semi-fini pas pris en compte. A noter: un produit semi-fini n'est pas considéré comme ingrédient régional!"]
["7. Contrôle: Valeur dans cellule F46 'total de tous les ingrédients\" doit correspondre à la valeur dans la cellule B6 'quantité de contrôle' "]
["8. fournisseurs, certificats et certifications InfoXgen eventuels "]
["9. si la valeur ajoutée est calculée: insérer des frais par kg"]
["10. Produits semi-finis: prix, frais et part régionale sont - si choisi ce procédé - transmis du calcul auxiliare. Autrement: insérér ici 'prix' et  'dont attribuable régional'"]
["11. cellule de résultat: G34: 'part régionale des ingrédients agricoles' "]

{"sheet":"Calcul_auxiliaire_semi-finis_1","index":1,"n_rows":140,"n_cols":12,"rows_kept":140,"merged":[[3,3,3,5],[5,0,5,1],[5,8,5,9],[6,0,6,1],[8,8,8,9],[9,0,9,6],[9,8,9,11],[11,2,11,4],[11,8,11,11],[13,0,13,1],[14,0,14,1],[15,0,15,1],[16,0,16,1],[17,0,17,1],[18,0,18,1],[19,0,19,1],[20,0,20,1],[21,0,21,1],[22,0,22,1],[23,0,23,1],[26,10,27,11],[32,8,33,9],[43,3,43,5],[45,0,45,1],[45,8,45,9],[46,0,46,1],[48,8,48,9],[49,0,49,6],[49,8,49,11],[51,2,51,4],[51,8,51,11],[53,0,53,1],[54,0,54,1],[55,0,55,1],[56,0,56,1],[57,0,57,1],[58,0,58,1],[59,0,59,1],[60,0,60,1],[61,0,61,1],[62,0,62,1],[63,0,63,1],[66,10,67,11],[72,8,73,9],[83,3,83,5],[85,0,85,1],[85,8,85,9],[86,0,86,1],[88,8,88,9],[89,0,89,6],[89,8,89,11],[91,2,91,4],[93,0,93,1],[94,0,94,1],[95,0,95,1],[96,0,96,1],[97,0,97,1],[98,0,98,1],[99,0,99,1],[100,0,100,1],[101,0,101,1],[102,0,102,1],[103,0,103,1],[106,10,107,11],[112,8,113,9]]}
["entreprise",{"$f":"Composition_Calcul_principal_1!B1","v":0},{"$nulls":9},"joindre les justificatifs!"]
["produit:",{"$f":"Composition_Calcul_principal_1!B3","v":0}]
[]
["calcul auxiliaire produit semi-fini 1",null,"fournisseur:",{"$nulls":3},"produit semi-fini:"]
[]
["1. composition transféré au calcul principal",null,"total kg","ingrédient régional agricole kg","ingrédient suisse agricole kg","ingrédient importé agricole  Kg","ingrédient non-agricole kg",null,"2.  frais / valeur ajoutée  à transférer au calcul principal"]
[{"$nulls":3},{"$f":"C26","v":0},{"$f":"D26","v":0},{"$f":"E26","v":0},{"$f":"C37","v":0},null,"prix d'achat produit semi-fini par kg quantité de contrôle",null,null,"CHF par kg"]
[]
["quantité de contrôle produit semi-fini",null,null,"kg ",{"$nulls":4},"valeur ajoutée  régionale attribuable produit semi-fini % ",null,{"$f":"IF($K$11=\"à l'intérieur\",$K$40,$L$40)","v":{"v":0,"d":"0%"}}]
["peut correspondre à la quantité utilisée dans le produit principal ou une quantité de contrôle definie qui est traduit proportionnellement dans la composition du produit principal (Lignes 26 et 37) ",{"$nulls":7},"La valeur ajoutée est calculée ci-dessous. Alternativement, le pourcentage peut être fourni par le fournisseur et saisi ici, des justificatifs doivent être fournies."]
[{"$nulls":8},"l'exploitation qui produit le produit semi-fini est située ",null,"à l'intérieur","de la région"]
[{"$nulls":8},"(choisir)"]
["dont ingrédients d'origine agricole",null,"ingrédient régional  kg (incl. Sucre CH, spécialités CH","ingrédient de provenance suisse kg","ingrédient importé kg","part % des ingrédients d'origine agricole (du semi-fini)","part % des ingrédients d'origine agricole (du produit) ",null,"ingrédients d'origine agricole","prix par kg CHF","coûts totaux CHF","dont attribuable à la valeur ajoutée régionale CHF"]
[{"$nulls":5},{"$f":"SUM(C14:E14)/SUM($C$25:$E$25)","v":{"$error":"#DIV/0!"}},{"$f":"SUM(C14:E14)/$C$9*$C$7/Composition_Calcul_principal_1!$G$32","v":{"$error":"#DIV/0!"}},null,{"$f":"A14","v":0},null,{"$f":"SUM(C14:E14)*J14","v":0},{"$f":"C14*J14","v":0}]
[{"$nulls":5},{"$error":"#DIV/0!"},{"$f":"SUM(C15:E15)/$C$9*$C$7/Composition_Calcul_principal_1!$G$32","v":{"$error":"#DIV/0!"}},null,{"$f":"A15","v":0},null,{"$f":"SUM(C15:E15)*J15","v":0},0]
[{"$nulls":5},{"$error":"#DIV/0!"},{"$f":"SUM(C16:E16)/$C$9*$C$7/Composition_Calcul_principal_1!$G$32","v":{"$error":"#DIV/0!"}},null,0,null,0,0]
[{"$nulls":5},{"$error":"#DIV/0!"},{"$f":"SUM(C17:E17)/$C$9*$C$7/Composition_Calcul_principal_1!$G$32","v":{"$error":"#DIV/0!"}},null,0,null,0,0]
[{"$nulls":5},{"$error":"#DIV/0!"},{"$f":"SUM(C18:E18)/$C$9*$C$7/Composition_Calcul_principal_1!$G$32","v":{"$error":"#DIV/0!"}},null,0,null,0,0]
[{"$nulls":5},{"$f":"SUM(C19:E19)/SUM($C$25:$E$25)","v":{"$error":"#DIV/0!"}},{"$f":"SUM(C19:E19)/$C$9*$C$7/Composition_Calcul_principal_1!$G$32","v":{"$error":"#DIV/0!"}},null,0,null,0,0]
[{"$nulls":5},{"$error":"#DIV/0!"},{"$f":"SUM(C20:E20)/$C$9*$C$7/Composition_Calcul_principal_1!$G$32","v":{"$error":"#DIV/0!"}},null,0,null,0,0]
[{"$nulls":5},{"$error":"#DIV/0!"},{"$f":"SUM(C21:E21)/$C$9*$C$7/Composition_Calcul_principal_1!$G$32","v":{"$error":"#DIV/0!"}},null,0,null,0,0]
[{"$nulls":5},{"$error":"#DIV/0!"},{"$f":"SUM(C22:E22)/$C$9*$C$7/Composition_Calcul_principal_1!$G$32","v":{"$error":"#DIV/0!"}},null,0,null,0,0]
[{"$nulls":5},{"$error":"#DIV/0!"},{"$f":"SUM(C23:E23)/$C$9*$C$7/Composition_Calcul_principal_1!$G$32","v":{"$error":"#DIV/0!"}},null,0,null,0,0]
[{"$nulls":5},{"$error":"#DIV/0!"},{"$f":"SUM(C24:E24)/$C$9*$C$7/Composition_Calcul_principal_1!$G$32","v":{"$error":"#DIV/0!"}},null,0,null,0,0]
["totaux des colonnes",null,{"$f":"SUM(C14:C24)","v":0},{"$f":"SUM(D14:D24)","v":0},{"$f":"SUM(E14:E24)","v":0},{"$error":"#DIV/0!"},{"$f":"SUM(C25:E25)/$C$9*$C$7/Composition_Calcul_principal_1!$G$32","v":{"$error":"#DIV/0!"}},null,"frais CHF",null,{"$f":"SUM(K14:K24)","v":0},{"$f":"SUM(L14:L24)","v":0}]
["quantité à transmettre proportionnellement kg",null,{"$f":"IF(C25>0,$C$7/$C$9*C25,C25)","v":0},{"$f":"IF(D25>0,$C$7/$C$9*D25,D25)","v":0},{"$f":"IF(E25>0,$C$7/$C$9*E25,E25)","v":0}]
[{"$nulls":8},"valeur ajoutée CHF par quantité de contrôle CHF",null,"Exploitation est située "]
[]
["Ingrédients d'origine non agricole",null,"kg",{"$nulls":7},"à l'intérieur","à l'extérieur"]
[{"$nulls":8},"prix de vente CHF ",null,{"$f":"(IF(K11=\"à l'intérieur\",K7*D39,0))","v":0}]
[{"$nulls":8},"-frais d'achat total CHF ",null,{"$f":"(IF(K11=\"à l'intérieur\",-K25,0))","v":0}]
[]
[{"$nulls":8},"moins frais à l'extérieur/                                                                      plus frais à l'intérieur"]
[]
[{"$nulls":8},"+/- frais de sous-traitance par tiers CHF"]
["total ingrédients d'origine non-agricole par quantité de test",null,{"$f":"SUM(C30:C35)","v":0},{"$nulls":5},"+/- frais de transport CHF"]
["quantité à transmettre proportionnellement kg",null,{"$f":"IF(C36>0,$C$7/$C$9*C36,C36)","v":0},{"$nulls":5},"+ frais régionaux attribuables CHF ",null,{"$f":"(IF($K$11=\"à l'intérieur\",L25,0))","v":0},{"$f":"IF($K$11=\"à l'extérieur\",SUM(L14:L24),0)","v":0}]
[]
["total de tous les ingrédients / quantité de contrôle (kg)",null,null,{"$f":"ROUND(SUM(C25:E25)+C36,2)","v":0},{"$f":"IF(D39=C9,\"total quantité de contrôle correct\",\"erreur dans le total\")","v":"total quantité de contrôle correct"},{"$nulls":3},"= VA produit semi-fini CHF par quantité de contrôle",null,{"$f":"IF($K$11=\"à l'intérieur\",K30+K31+SUM(K35:K36)+K37,0)","v":0},{"$f":"IF($K$11=\"à l'extérieur\",SUM(L35:L36)+L37,0)","v":0}]
["part régionale des ingrédients agricoles ",{"$nulls":5},{"$f":"IF(SUM(C25:E25)>0,SUM(C25)/SUM(C25:E25),0)","v":{"v":0,"d":"0%"}},null,"en % du prix de vente",null,{"$f":"IF(D39>0,IF(K11=\"à l'intérieur\",K39/(K30),0),0)","v":{"v":0,"d":"0%"}},{"$f":"IF(D39>0,IF(K11=\"à l'extérieur\",L39/(K7*D39),0),0)","v":{"v":0,"d":"0%"}}]
["entreprise","exploitation modèle",{"$nulls":9},"joindre les justificatifs!"]
["produit:","joghourt aux fruits"]
[]
["calcul auxiliaire produit semi-fini 2",null,"fournisseur:",{"$nulls":3},"produit semi-fini:"]
[]
["1. composition transféré au calcul principal",null,"total kg","ingrédient régional agricole kg","ingrédient suisse agricole kg","ingrédient importé agricole  Kg","ingrédient non-agricole kg",null,"2.  frais / valeur ajoutée  à transférer au calcul principal"]
[{"$nulls":3},{"$f":"C66","v":0},{"$f":"D66","v":0},{"$f":"E66","v":0},{"$f":"C77","v":0},null,"prix d'achat produit semi-fini par kg quantité de contrôle",null,null,"CHF par kg"]
[]
["quantité de contrôle produit semi-fini",null,null,"kg ",{"$nulls":4},"valeur ajoutée  régionale attribuable produit semi-fini % ",null,{"$f":"IF(K51=\"à l'intérieur\",K80,L80)","v":{"v":0,"d":"0%"}}]
["peut correspondre à la quantité utilisée dans le produit principal ou une quantité de contrôle definie qui est traduit proportionnellement dans la composition du produit principal  (Lignes 67 et 78) ",{"$nulls":7},"La valeur ajoutée est calculée ci-dessous. Alternativement, le pourcentage peut être fourni par le fournisseur et saisi ici, des justificatifs doivent être fournies."]
[{"$nulls":8},"exploitation qui produit le semi-fini est située (choisissez!)",null,"à l'intérieur","de la région"]
[]
["dont ingrédients d'origine agricole",null,"ingrédient régional  kg (incl. Sucre CH, spécialités CH","ingrédient de provenance suisse kg","ingrédient importé kg","part % des ingrédients d'origine agricole (du semi-fini)","part % des ingrédients d'origine agricole (du produit) ",null,"ingrédients d'origine agricole","prix par kg CHF","coûts totaux CHF","dont attribuable à la valeur ajoutée régionale CHF"]
[{"$nulls":5},{"$f":"SUM(C54:E54)/SUM($C$65:$E$65)","v":{"$error":"#DIV/0!"}},{"$f":"SUM(C54:E54)/$C$49*$C$47/Composition_Calcul_principal_1!$G$32","v":{"$error":"#DIV/0!"}},null,{"$f":"A54","v":0},null,{"$f":"SUM(C54:E54)*J54","v":0},{"$f":"C54*J54","v":0}]
[{"$nulls":5},{"$f":"SUM(C55:E55)/SUM($C$65:$E$65)","v":{"$error":"#DIV/0!"}},{"$f":"SUM(C55:E55)/$C$49*$C$47/Composition_Calcul_principal_1!$G$32","v":{"$error":"#DIV/0!"}},null,{"$f":"A55","v":0},null,{"$f":"SUM(C55:E55)*J55","v":0},0]
[{"$nulls":5},{"$f":"SUM(C56:E56)/SUM($C$65:$E$65)","v":{"$error":"#DIV/0!"}},{"$f":"SUM(C56:E56)/$C$49*$C$47/Composition_Calcul_principal_1!$G$32","v":{"$error":"#DIV/0!"}},null,0,null,0,0]
[{"$nulls":5},{"$error":"#DIV/0!"},{"$f":"SUM(C57:E57)/$C$49*$C$47/Composition_Calcul_principal_1!$G$32","v":{"$error":"#DIV/0!"}},null,0,null,0,0]
[{"$nulls":5},{"$error":"#DIV/0!"},{"$f":"SUM(C58:E58)/$C$49*$C$47/Composition_Calcul_principal_1!$G$32","v":{"$error":"#DIV/0!"}},null,0,null,0,0]
[{"$nulls":5},{"$error":"#DIV/0!"},{"$f":"SUM(C59:E59)/$C$49*$C$47/Composition_Calcul_principal_1!$G$32","v":{"$error":"#DIV/0!"}},null,0,null,0,0]
[{"$nulls":5},{"$error":"#DIV/0!"},{"$f":"SUM(C60:E60)/$C$49*$C$47/Composition_Calcul_principal_1!$G$32","v":{"$error":"#DIV/0!"}},null,0,null,0,0]
[{"$nulls":5},{"$error":"#DIV/0!"},{"$f":"SUM(C61:E61)/$C$49*$C$47/Composition_Calcul_principal_1!$G$32","v":{"$error":"#DIV/0!"}},null,0,null,0,0]
[{"$nulls":5},{"$error":"#DIV/0!"},{"$f":"SUM(C62:E62)/$C$49*$C$47/Composition_Calcul_principal_1!$G$32","v":{"$error":"#DIV/0!"}},null,0,null,0,0]
[{"$nulls":5},{"$error":"#DIV/0!"},{"$f":"SUM(C63:E63)/$C$49*$C$47/Composition_Calcul_principal_1!$G$32","v":{"$error":"#DIV/0!"}},null,0,null,0,0]
[{"$nulls":5},{"$error":"#DIV/0!"},{"$f":"SUM(C64:E64)/$C$49*$C$47/Composition_Calcul_principal_1!$G$32","v":{"$error":"#DIV/0!"}},null,0,null,0,0]
["totaux des colonnes",null,{"$f":"SUM(C54:C64)","v":0},{"$f":"SUM(D54:D64)","v":0},{"$f":"SUM(E54:E64)","v":0},{"$f":"SUM(C65:E65)/SUM(C65:E65)","v":{"$error":"#DIV/0!"}},{"$f":"SUM(C65:E65)/$C$49*$C$47/Composition_Calcul_principal_1!$G$32","v":{"$error":"#DIV/0!"}},null,"frais CHF",null,{"$f":"SUM(K54:K64)","v":0},{"$f":"SUM(L54:L64)","v":0}]
["quantité à transmettre proportionnellement kg",null,{"$f":"IF(C65>0,$C$47/$C$49*C65,C65)","v":0},{"$f":"IF(D65>0,$C$47/$C$49*D65,D65)","v":0},{"$f":"IF(E65>0,$C$47/$C$49*E65,E65)","v":0}]
[{"$nulls":8},"valeur ajoutée CHF par quantité de contrôle CHF",null,"Exploitation est située "]
[]
["Ingrédients d'origine non agricole",null,"kg",{"$nulls":7},"à l'intérieur","à l'extérieur"]
[{"$nulls":8},"prix de vente CHF ",null,{"$f":"(IF(K51=\"à l'intérieur\",K47*D79,0))","v":0}]
[{"$nulls":8},"-frais d'achat total CHF ",null,{"$f":"(IF(K51=\"à l'intérieur\",-K65,0))","v":0}]
[]
[{"$nulls":8},"moins frais exterieurs/                                                                      plus frais à l'intérieur"]
[]
[{"$nulls":8},"+/- frais de sous-traitance par tiers CHF"]
["total ingrédients d'origine non-agricole par quantité de test",null,{"$f":"SUM(C70:C75)","v":0},{"$nulls":5},"+/- frais de transport CHF"]
["quantité à transmettre proportionnellement kg",null,{"$f":"IF(C76>0,C47/C49*C76,C76)","v":0},{"$nulls":5},"+ frais régionaux attribuables CHF ",null,{"$f":"(IF($K$51=\"à l'intérieur\",L65,0))","v":0},{"$f":"IF($K$51=\"à l'extérieur\",SUM(L54:L64),0)","v":0}]
[]
["total ingrédients saisis / quanité xx (kg)",null,null,{"$f":"ROUND(SUM(C65:E65)+C76,2)","v":0},{"$f":"IF(D79=C49,\"total quantité de contrôle correct\",\"erreur dans le total\")","v":"total quantité de contrôle correct"},{"$nulls":3},"= VA produit semi-fini CHF par quantité de contrôle",null,{"$f":"IF($K$51=\"à l'intérieur\",K70+K71+SUM(K75:K76)+K77,0)","v":0},{"$f":"IF($K$51=\"à l'extérieur\",SUM(L75:L76)+L77,0)","v":0}]
["part régionale des ingrédients agricoles ",{"$nulls":5},{"$f":"IF(SUM(C65:E65)>0,SUM(C65)/SUM(C65:E65),0)","v":{"v":0,"d":"0%"}},null,"en % du prix de vente",null,{"$f":"IF(D79>0,IF($K$51=\"à l'intérieur\",K79/(K70),0),0)","v":{"v":0,"d":"0%"}},{"$f":"IF(D79>0,IF($K$51=\"à l'extérieur\",L79/(K47*D79),0),0)","v":{"v":0,"d":"0%"}}]
["entreprise","exploitation modèle",{"$nulls":9},"joindre les justificatifs!"]
["produit:","joghourt aux fruits"]
[]
["calcul auxiliaire produit semi-fini 3",null,"fournisseur:",{"$nulls":3},"produit semi-fini:"]
[]
["1. composition transféré au calcul principal",null,"total kg","ingrédient régional agricole kg","ingrédient suisse agricole kg","ingrédient importé agricole  Kg","ingrédient non-agricole kg",null,"2.  frais / valeur ajoutée  à transférer au calcul principal"]
[{"$nulls":3},{"$f":"C106","v":0},{"$f":"D106","v":0},{"$f":"E106","v":0},{"$f":"C117","v":0},null,"prix d'achat produit semi-fini par kg quantité de contrôle",null,null,"CHF par kg"]
[]
["quantité de contrôle produit semi-fini",null,null,"kg ",{"$nulls":4},"valeur ajoutée  régionale attribuable produit semi-fini % ",null,{"$f":"IF(K91=\"à l'intérieur\",K120,L120)","v":{"v":0,"d":"0%"}}]
["peut correspondre à la quantité utilisée dans le produit principal ou une quantité de contrôle definie qui est traduit proportionnellement dans la composition du produit principal  (Lignes  108 et 119) ",{"$nulls":7},"La valeur ajoutée est calculée ci-dessous. Alternativement, le pourcentage peut être fourni par le fournisseur et saisi ici, des justificatifs doivent être fournies."]
[{"$nulls":8},"exploitation qui produit le semi-fini est située (choisissez!)",null,"à l'intérieur","de la région"]
[]
["dont ingrédients d'origine agricole",null,"ingrédient régional  kg (incl. Sucre CH, spécialités CH","ingrédient de provenance suisse kg","ingrédient importé kg","part % des ingrédients d'origine agricole (du semi-fini)","part % des ingrédients d'origine agricole (du produit) ",null,"ingrédients d'origine agricole","prix par kg CHF","coûts totaux CHF","dont attribuable à la valeur ajoutée régionale CHF"]
[{"$nulls":5},{"$f":"SUM(C94:E94)/SUM($C$25:$E$25)","v":{"$error":"#DIV/0!"}},{"$f":"SUM(C94:E94)/$C$89*$C$87/Composition_Calcul_principal_1!$G$32","v":{"$error":"#DIV/0!"}},null,{"$f":"A94","v":0},null,{"$f":"SUM(C94:E94)*J94","v":0},{"$f":"C94*J94","v":0}]
[{"$nulls":5},{"$error":"#DIV/0!"},{"$f":"SUM(C95:E95)/$C$89*$C$87/Composition_Calcul_principal_1!$G$32","v":{"$error":"#DIV/0!"}},null,{"$f":"A95","v":0},null,{"$f":"SUM(C95:E95)*J95","v":0},0]
[{"$nulls":5},{"$error":"#DIV/0!"},{"$f":"SUM(C96:E96)/$C$89*$C$87/Composition_Calcul_principal_1!$G$32","v":{"$error":"#DIV/0!"}},null,0,null,0,0]
[{"$nulls":5},{"$error":"#DIV/0!"},{"$f":"SUM(C97:E97)/$C$89*$C$87/Composition_Calcul_principal_1!$G$32","v":{"$error":"#DIV/0!"}},null,0,null,0,0]
[{"$nulls":5},{"$error":"#DIV/0!"},{"$f":"SUM(C98:E98)/$C$89*$C$87/Composition_Calcul_principal_1!$G$32","v":{"$error":"#DIV/0!"}},null,0,null,0,0]
[{"$nulls":5},{"$error":"#DIV/0!"},{"$f":"SUM(C99:E99)/$C$89*$C$87/Composition_Calcul_principal_1!$G$32","v":{"$error":"#DIV/0!"}},null,0,null,0,0]
[{"$nulls":5},{"$f":"SUM(C100:E100)/SUM($C$25:$E$25)","v":{"$error":"#DIV/0!"}},{"$f":"SUM(C100:E100)/$C$89*$C$87/Composition_Calcul_principal_1!$G$32","v":{"$error":"#DIV/0!"}},null,0,null,0,0]
[{"$nulls":5},{"$error":"#DIV/0!"},{"$f":"SUM(C101:E101)/$C$89*$C$87/Composition_Calcul_principal_1!$G$32","v":{"$error":"#DIV/0!"}},null,0,null,0,0]
[{"$nulls":5},{"$error":"#DIV/0!"},{"$f":"SUM(C102:E102)/$C$89*$C$87/Composition_Calcul_principal_1!$G$32","v":{"$error":"#DIV/0!"}},null,0,null,0,0]
[{"$nulls":5},{"$error":"#DIV/0!"},{"$f":"SUM(C103:E103)/$C$89*$C$87/Composition_Calcul_principal_1!$G$32","v":{"$error":"#DIV/0!"}},null,0,null,0,0]
[{"$nulls":5},{"$error":"#DIV/0!"},{"$f":"SUM(C104:E104)/$C$89*$C$87/Composition_Calcul_principal_1!$G$32","v":{"$error":"#DIV/0!"}},null,0,null,0,0]
["totaux des colonnes",null,{"$f":"SUM(C94:C104)","v":0},{"$f":"SUM(D94:D104)","v":0},{"$f":"SUM(E94:E104)","v":0},{"$error":"#DIV/0!"},{"$f":"SUM(C105:E105)/$C$89*$C$87/Composition_Calcul_principal_1!$G$32","v":{"$error":"#DIV/0!"}},null,"frais CHF",null,{"$f":"SUM(K94:K104)","v":0},{"$f":"SUM(L94:L104)","v":0}]
["quantité à transmettre proportionnellement kg",null,{"$f":"IF(C105>0,$C$87/$C$89*C105,C105)","v":0},{"$f":"IF(D105>0,$C$87/$C$89*D105,D105)","v":0},0]
[{"$nulls":8},"valeur ajoutée CHF par quantité de contrôle CHF",null,"Exploitation est située "]
[]
["Ingrédients d'origine non agricole",null,"kg",{"$nulls":7},"à l'intérieur","à l'extérieur"]
[{"$nulls":8},"prix de vente CHF ",null,{"$f":"(IF(K91=\"à l'intérieur\",K87*D119,0))","v":0}]
[{"$nulls":8},"-frais d'achat total CHF ",null,{"$f":"(IF(K91=\"à l'intérieur\",-K105,0))","v":0}]
[]
[{"$nulls":8},"moins frais extérieurs/                                                                      plus frais à l'intérieur"]
[]
[{"$nulls":8},"+/- frais de sous-traitance par tiers CHF"]
["total ingrédients d'origine non-agricole par quantité de test",null,{"$f":"SUM(C110:C115)","v":0},{"$nulls":5},"+/- frais de transport CHF"]
["quantité à transmettre proportionnellement kg",null,{"$f":"IF(C116>0,$C$87/$C$89*C116,C116)","v":0},{"$nulls":5},"+ frais régionaux attribuables CHF ",null,{"$f":"(IF(K91=\"à l'intérieur\",L105,0))","v":0},{"$f":"IF(K91=\"à l'extérieur\",SUM(L94:L104),0)","v":0}]
[]
["total ingrédients saisis / quanité xx (kg)",null,null,{"$f":"ROUND(SUM(C105:E105)+C116,2)","v":0},{"$f":"IF(D119=C89,\"total quantité de contrôle correct\",\"erreur dans le total\")","v":"total quantité de contrôle correct"},{"$nulls":3},"= VA produit semi-fini CHF par quantité de contrôle",null,{"$f":"IF(K91=\"à l'intérieur\",K110+K111+SUM(K115:K116)+K117,0)","v":0},{"$f":"IF(K91=\"à l'extérieur\",SUM(L115:L116)+L117,0)","v":0}]
["part régionale des ingrédients agricoles ",{"$nulls":5},{"$f":"IF(SUM(C105:E105)>0,SUM(C105)/SUM(C105:E105),0)","v":{"v":0,"d":"0%"}},null,"en % du prix de vente",null,{"$f":"IF(D119>0,IF($K$91=\"à l'intérieur\",K119/(K110),0),0)","v":{"v":0,"d":"0%"}},{"$f":"IF(D119>0,IF(K91=\"à l'extérieur\",L119/(K87*D119),0),0)","v":{"v":0,"d":"0%"}}]
[]
[]
[]
[]
["marche à suivre: "]
["1. contrôle de la composition"]
["1. insérer fournisseur et nom du produit semi-fini"]
["2. insérer quantité du produit semi-fini dans le produit principal "]
["3. définir et insérer quantité de contrôle produit semi-fini: Peut être la même (voir point 2.) ou différente, définie en quantité de contrôle (p.ex. 100kg)"]
["4. insérer les ingrédients: Ingrédients d'origine agricole selon provenance, ingrédients non-agricoles "]
["5. contrôle: le total des ingrédients correspond à la quantité de contrôle (arrondi à trois décimales)"]
["6. Cellules de résultat: sont transférées dans la feuille / calcul principal: valeurs totales quantité kg, ingrédient régional agricole kg, ingrédient agricole d'origine CH kg, ingrédient agricole importé kg, ingrédient non agricole kg "]
[]
["2. frais / contrôle de la valeur ajoutée"]
["1. insérer prix d'achat produit semi-fini par kg"]
["2. Si la valeur ajoutée est fournie à la base d'un calcul à part, l'insérer là. Si non, passer au calcul dessous "]
["3. Choisir(Drop-down): l'exploitation qui fabrique le produit semi-fini est située: à l'intérieur ou à l'extérieur"]
["4. Insérer prix par kg des ingrédients d'origine agricole "]
["5. Insérer valeurs respectives pour frais de sous-traitance par des tiers et frais de transport. Déduire si les frais sont générés à l'extérieur de la région et l'exploitation est située à l'intérieur de la région, ajouter (+) si les frais sont générés à l'intérieur de la région et l'entreprise se situe à l'extérieur de la région. "]
["6. Cellules de résultat: sont transférées dans la feuille / calcul principal: \"prix par kg\" et \"valeur ajoutée régionale attribuable au produit semi-fini %\" "]

{"sheet":"VA_INT_1","index":2,"n_rows":31,"n_cols":5,"rows_kept":31,"merged":[[5,0,5,1],[6,0,6,1],[7,0,7,1],[8,0,8,1],[9,0,9,1],[10,0,10,1],[11,0,11,1],[23,2,23,4],[24,2,24,4]]}
["entreprise:",{"$f":"Composition_Calcul_principal_1!B1","v":0},null,null,"joindre les justificatifs!"]
[{"$nulls":4},"quantité de contrôle par unité (p.ex. 1 kg, 100 kg):"]
["produit (dénominaiton spécifique):",{"$f":"Composition_Calcul_principal_1!B3","v":0},null,null,{"$f":"Composition_Calcul_principal_1!B6","v":0}]
[]
["pour entreprises/exploitations situées  dans la région",null,"Valeur CHF","%","Commentaire"]
["prix de vente\nPrix de vente (ou prix de revient à l'acheteur) moyenne pondérée des 12 mois précédents",null,null,{"$f":"C6/$C$6","v":{"$error":"#DIV/0!"}}]
["- prix d'achat ingrédients d'origine agricole sans produits semi-finis ",null,{"$f":"-SUM(Composition_Calcul_principal_1!H31)+SUM(Composition_Calcul_principal_1!H28:H30)","v":0}]
["- prix d'achat produit semi-fini 1",null,{"$f":"-Composition_Calcul_principal_1!H28","v":0}]
["- prix d'achat produit semi-fini 2",null,{"$f":"-Composition_Calcul_principal_1!H29","v":0}]
["- prix d'achat produit semi-fini 3",null,{"$f":"-Composition_Calcul_principal_1!H30","v":0}]
["- frais de sous-traitance par des tiers\nEst à déduire de la valeur ajoutée régionale si l'entreprise se trouve hors région "]
["- frais de transport\nEst à déduire de la valeur ajoutée régionale si l'entreprise de transport se trouve hors région"]
["= valeur ajoutée régionale intra-entreprise",null,{"$f":"SUM(C6:C12)","v":0},{"$f":"C13/C6","v":{"$error":"#DIV/0!"}}]
["+ part attribuable des ingrédients régionaux d'origine agricole",null,{"$f":"SUM(Composition_Calcul_principal_1!I9:I27)","v":0}]
["+ part attribuable du produit semi-fini 1 (uniquement si tenu compte)",null,{"$f":"Composition_Calcul_principal_1!I28","v":0}]
["+ part attribuable du produit semi-fini 2 (uniquement si tenu compte)",null,{"$f":"Composition_Calcul_principal_1!I29","v":0}]
["+ part attribuable du produit semi-fini 3 (uniquement si tenu compte)",null,{"$f":"Composition_Calcul_principal_1!I30","v":0}]
[]
["= valeur ajoutée régionale brute",null,{"$f":"C13+SUM(C14:C17)","v":0},{"$f":"C19/C6","v":{"$error":"#DIV/0!"}},"=Valeur de consigne ≥66.67%"]
[]
["avec la signature, l'exactitude des données est confirmée: "]
[]
["lieu, date:",null,"Nom, prénom, signature"]
[]
[]
[]
[]
["Procédé:"]
["1. insérér prix de vente par quantité vendue (=100%)"]
["2. déduire frais eventuels: frais des travaux par des tiers et frais de transport"]
["3. insérer des commentaires eventuels"]

{"sheet":"VA_EXT_1","index":3,"n_rows":28,"n_cols":5,"rows_kept":28,"merged":[[5,0,5,1],[7,0,7,1],[8,0,8,1],[20,2,20,4],[21,2,21,4]]}
["entreprise:",{"$f":"Composition_Calcul_principal_1!B1","v":0},null,null,"joindre les justificatifs!"]
[{"$nulls":4},"quantité de contrôle par unité (z.B. 1 kg, 100 kg):"]
["produit (dénomination spécifique):",{"$f":"Composition_Calcul_principal_1!B3","v":0},null,null,{"$f":"Composition_Calcul_principal_1!B6","v":0}]
[]
["Pour entreprises/exploitations situées à l'extérieur de la région",null,"Valeur CHF","%","Commentaire"]
["Prix de vente\nPrix de vente (ou prix de revient à l'acheteur) moyen pondéré des 12 mois précédents",null,null,{"$f":"C6/$C$6","v":{"$error":"#DIV/0!"}}]
[]
["+ Frais de sous-traitance par tiers\npeuvent être aditionnées à la valeur ajoutée régionale si l'entreprise se trouve dans la région"]
["+ Frais de transport\npeuvent être aditionnés à la valeur ajoutée régionale, si l'entreprise de transport se trouve dans la région"]
["= valeur ajoutée régionale intra-entreprise",null,{"$f":"SUM(C8:C9)","v":0},{"$f":"C10/$C$6","v":{"$error":"#DIV/0!"}}]
["+ part attribuable des ingrédients régionaux d'originie agricole ",null,{"$f":"SUM(Composition_Calcul_principal_1!I9:I27)","v":0}]
["+ part attribuable du produit semi-fini 1 (uniquement si  tenu compte)",null,{"$f":"Composition_Calcul_principal_1!I28","v":0}]
["+ part attribuable du produit semi-fini 2   (uniquement si  tenu compte)",null,{"$f":"Composition_Calcul_principal_1!I29","v":0}]
["+ part attribuable du produit semi-fini 3 (uniquement si  tenu compte)",null,{"$f":"Composition_Calcul_principal_1!I30","v":0}]
[]
["= valeur ajoutée régionale brute",null,{"$f":"C10+SUM(C11:C14)","v":0},{"$f":"C16/C6","v":{"$error":"#DIV/0!"}},"=valeur de consigne  ≥66.67%"]
[]
["avec la signature, l'exactitude des données est confirmée: "]
[]
["lieu, date:",null,"Nom, prénom, signature"]
[]
[]
[]
[]
["Procédé: "]
["1. insérér prix de vente par quantité vendue (=100%)"]
["2. insérer frais eventuels: frais des travaux par des tiers et frais de transport"]
["3. insérer des commentaires eventuels"]